bitfinex-derivatives/quotes_ETHF0:USTF0_20251216
["timestamp","ask_amount","ask_price","bid_price","bid_amount"]
[1765869679406,0.00849683,2930.6,2930.5,4.6187]
[1765869679609,3.2078,2931.1,2931.0,1.9587]
[1765869679816,4.6333,2931.5,2931.4,0.7469]
[1765869680117,4.6333,2931.5,2931.4,1.5005]
[1765869680322,3.9203,2931.5,2931.4,1.5005]
[1765869680512,3.92466005,2931.5,2931.4,1.5005]
[1765869681220,0.00436005,2931.5,2931.4,1.5005]
[1765869682220,0.00436005,2931.5,2931.4,4.3205]
[1765869682616,0.00436005,2931.5,2931.4,1.5005]
[1765869683017,0.71686005,2931.5,2931.4,1.5005]
[1765869683319,0.00436005,2931.5,2931.4,1.5005]
[1765869684024,0.71686005,2931.5,2931.4,1.5005]
[1765869684224,4.63766005,2931.5,2931.4,0.7469]
[1765869684422,0.7125,2930.8,2930.7,4.7083]
[1765869684620,0.7125,2930.8,2930.3,0.00860527]
[1765869684621,0.17063,2930.9,2930.8,0.7469]
[1765869684818,0.17063,2930.9,2930.8,1.5005]
[1765869685017,4.80393,2930.9,2930.8,1.5005]
[1765869685211,0.7125,2930.6,2930.5,1.9587]
[1765869685421,0.7125,2930.6,2930.5,1.2051]
[1765869685422,4.6333,2930.6,2930.5,1.2051]
[1765869685624,0.7125,2930.4,2930.3,1.50910527]
[1765869685820,0.7125,2930.4,2930.3,42.33910527]
[1765869686020,3.37843,2930.9,2930.8,1.5005]
[1765869686219,0.17063,2930.9,2930.8,1.5005]
[1765869686620,0.88313,2930.9,2930.8,1.5005]
[1765869687027,4.09093,2930.9,2930.8,1.5005]
[1765869687217,0.7125,2930.6,2930.5,1.9587]
[1765869687421,1.4255,2930.6,2930.5,1.9587]
[1765869687819,0.7125,2930.6,2930.5,1.9587]
[1765869688223,1.4255,2930.4,2930.3,40.80860527]
[1765869688422,1.4255,2930.4,2930.3,0.00860527]
[1765869691533,3.2078,2930.6,2930.3,1.50910527]
[1765869691727,3.9203,2930.6,2930.5,0.7469]
[1765869691934,1.4255,2930.4,2930.3,0.00860527]
[1765869692138,3.2078,2930.6,2930.3,0.75550527]
[1765869692441,1.4343,2930.4,2930.3,0.00860527]
[1765869692634,4.7166,2930.6,2930.5,1.2221]
[1765869693434,1.5088,2930.4,2930.3,0.76340527]
[1765869693629,1.5088,2930.4,2930.3,0.00860527]
[1765869693837,1.5088,2930.4,2930.3,3.12340527]
[1765869694040,1.5088,2930.4,2930.3,0.00860527]
[1765869694444,3.04611356,2930.4,2930.3,0.00860527]
[1765869694645,3.21677356,2930.4,2930.3,0.00860527]
[1765869695243,0.7301,2929.1,2929.0,5.1885]
[1765869695430,3.2078,2929.6,2929.5,0.7548]
[1765869695736,3.37849,2929.9,2929.5,4.4298]
[1765869696041,1.5088,2929.6,2929.5,3.6621]
[1765869696242,0.7335163,2929.6,2929.5,4.39359564]
[1765869696437,0.7335163,2929.6,2929.5,1.99359564]
[1765869696638,0.0034163,2929.6,2929.5,4.50359564]
[1765869696941,0.0034163,2929.6,2929.5,4.37359564]
[1765869697138,0.7335163,2929.6,2929.5,4.37359564]
[1765869697338,0.7335163,2929.6,2929.5,4.50359564]
[1765869697643,0.0034163,2929.6,2929.5,4.31359564]
[1765869698539,1.63e-05,2929.6,2929.5,10.73359564]
[1765869698734,1.63e-05,2929.6,2929.5,12.2709092]
[1765869698939,3.2078,2930.5,2930.4,1.5225]
[1765869698940,3.9379,2930.5,2930.4,1.5225]
[1765869699137,4.9557697,2930.5,2930.4,1.5225]
[1765869699445,5.7344697,2930.5,2930.4,1.5225]
[1765869699641,4.2256697,2930.5,2930.4,1.5225]
[1765869699844,4.22891721,2930.5,2930.4,1.5225]
[1765869700042,4.95901721,2930.5,2930.4,1.5225]
[1765869701543,0.00324751,2930.5,2930.4,3.9725]
[1765869702243,1.02111721,2930.5,2930.4,3.9725]
[1765869702443,0.00324751,2930.5,2930.4,9.9725]
[1765869702847,4.751e-05,2930.5,2930.4,9.9725]
[1765869703644,1.02020469,2931.3,2931.2,1.5225]
[1765869703839,1.02020469,2931.3,2931.2,4.3325]
[1765869704143,0.7842978,2931.9,2931.8,1.5225]
[1765869704446,0.78781743,2931.9,2931.8,1.52519875]
[1765869704842,1.51231963,2931.9,2931.8,1.52519875]
[1765869705037,1.51231963,2931.9,2931.8,0.75749875]
[1765869706047,1.51231963,2931.9,2931.8,0.00269875]
[1765869706747,0.73361963,2931.9,2931.8,1.52519875]
[1765869706948,1.51231963,2931.9,2931.8,1.52519875]
[1765869707249,1.51231963,2931.9,2931.8,0.00269875]
[1765869707437,1.51231963,2931.9,2931.8,0.75749875]
[1765869707944,0.73361963,2931.9,2931.8,1.52519875]
[1765869708340,0.00351963,2931.9,2931.8,1.52519875]
[1765869709345,0.00351963,2931.9,2931.8,4.32519875]
[1765869713460,1.963e-05,2931.9,2931.8,1.52519875]
[1765869713754,1.963e-05,2931.9,2931.8,4.17519875]
[1765869714553,1.963e-05,2931.9,2931.8,4.30519875]
[1765869714753,1.963e-05,2931.9,2931.8,4.18519875]
[1765869714955,1.963e-05,2931.9,2931.8,44.98519875]
[1765869716560,1.963e-05,2931.9,2931.8,42.32519875]
[1765869716752,1.963e-05,2931.9,2931.8,45.13519875]
[1765869718067,1.963e-05,2931.9,2931.8,44.82519875]
[1765869719465,1.963e-05,2931.9,2931.8,42.32519875]
[1765869719665,1.963e-05,2931.9,2931.8,45.03519875]
[1765869720161,0.73011963,2931.9,2931.8,42.32519875]
[1765869720460,1.50881963,2931.9,2931.8,3.92519875]
[1765869720860,0.73011963,2931.9,2931.8,3.92519875]
[1765869721061,1.963e-05,2931.9,2931.8,2.40269875]
[1765869721363,1.963e-05,2931.9,2931.8,0.00269875]
[1765869721558,1.963e-05,2931.9,2931.8,0.19269875]
[1765869721757,1.963e-05,2931.9,2931.8,2.36269875]
[1765869722762,3.9733,2932.6,2932.5,1.8892]
[1765869722962,3.9733,2932.6,2932.5,4.3592]
[1765869723666,3.21183941,2932.6,2932.5,4.3592]
[1765869724054,0.00403941,2932.6,2932.5,4.3592]
[1765869725663,0.00511761,2932.8,2932.7,1.4589]
[1765869726070,0.00511761,2932.8,2932.7,4.2489]
[1765869726270,3.2078,2933.2,2933.1,1.4589]
[1765869726474,0.93598,2933.4,2933.3,1.4589]
[1765869726661,0.17333351,2933.4,2933.3,3.8189]
[1765869726861,0.00285351,2933.4,2933.3,3.8189]
[1765869728070,3.9733,2934.1,2934.0,1.8892]
[1765869728274,2.86237982,2934.1,2934.0,4.2092]
[1765869728471,4.14373,2934.4,2934.3,1.4589]
[1765869728773,4.14373,2934.4,2934.3,3.9189]
[1765869729170,4.14774713,2934.4,2934.3,3.92311879]
[1765869729773,3.38224713,2934.4,2934.3,3.92311879]
[1765869730372,4.14774713,2934.4,2934.3,3.92311879]
[1765869730572,4.14774713,2934.4,2934.3,1.46311879]
[1765869731272,0.00401713,2934.4,2934.3,3.99311879]
[1765869731468,1.54671713,2934.4,2934.3,1.46311879]
[1765869731667,1.54671713,2934.4,2934.3,3.75311879]
[1765869731863,0.00401713,2934.4,2934.3,3.75311879]
[1765869733076,0.76951713,2934.4,2934.3,1.46311879]
[1765869733274,1.54671713,2934.4,2934.3,1.46311879]
[1765869733463,1.54671713,2934.4,2934.3,3.80311879]
[1765869733668,0.76951713,2934.4,2934.3,1.46311879]
[1765869733868,0.76951713,2934.4,2934.3,3.83311879]
[1765869734674,0.00401713,2934.4,2934.3,3.83311879]
[1765869735174,3.9733,2935.0,2934.9,1.4589]
[1765869735379,3.9733,2935.0,2934.9,3.8789]
[1765869735763,0.7655,2934.6,2934.5,1.8892]
[1765869735969,1.5427,2934.6,2934.5,4.7092]
[1765869736178,1.54550313,2934.6,2934.5,4.7092]
[1765869736576,0.76830313,2934.6,2934.5,4.7092]
[1765869737266,0.76830313,2934.6,2934.5,1.8892]
[1765869737471,0.76830313,2934.6,2934.5,4.5492]
[1765869737872,0.00280313,2934.6,2934.5,7.757]
[1765869739381,0.00330159,2934.8,2934.7,1.4589]
[1765869739671,1.54600159,2934.8,2934.7,3.2642]
[1765869739876,0.76880159,2934.8,2934.7,3.9989]
[1765869740079,0.76880159,2934.8,2934.7,4.0389]
[1765869740277,0.00639062,2934.8,2934.7,4.0389]
[1765869741668,0.77189062,2934.8,2934.7,4.0389]
[1765869741876,0.77189062,2934.8,2934.5,0.4303]
[1765869741877,1.5427,2934.6,2934.5,0.4303]
[1765869742182,1.5427,2934.4,2934.3,0.72841879]
[1765869742676,5.76375124,2934.4,2934.3,0.00421879]
[1765869742870,5.76375124,2934.4,2934.3,0.00017938]
[1765869743077,1.5427,2933.9,2933.8,3.2078]
[1765869743375,1.5427,2933.9,2933.8,3.932]
[1765869743577,1.5427,2933.9,2933.8,4.6667]
[1765869743781,1.01325124,2933.9,2933.8,7.2067]
[1765869743984,2.55595124,2934.1,2934.0,1.8892]
[1765869746183,2.55595124,2934.1,2934.0,1.1545]
[1765869746683,1.5427,2933.9,2933.8,3.94093135]
[1765869746876,2.55595124,2933.9,2933.8,3.94093135]
[1765869747382,2.55595124,2933.9,2933.8,0.00893135]
[1765869747886,1.77875124,2933.9,2933.8,3.86783135]
[1765869748486,1.77875124,2933.9,2933.8,1.46783135]
[1765869748679,2.55595124,2933.9,2933.8,0.73313135]
[1765869748879,2.55595124,2933.9,2933.8,0.00893135]
[1765869749083,1.77875124,2933.9,2933.8,1.46783135]
[1765869751490,2.55595124,2933.9,2933.8,0.73313135]
[1765869752080,2.55595124,2933.9,2933.8,1.46783135]
[1765869752285,1.77875124,2933.9,2933.8,1.46783135]
[1765869752683,2.54425124,2933.9,2933.8,0.73313135]
[1765869755792,2.54425124,2933.9,2933.8,0.00893135]
[1765869757689,0.2244,2933.5,2933.1,3.2078]
[1765869757995,1.4516,2933.2,2933.1,45.4906]
[1765869758182,2.46485124,2933.2,2933.1,45.4906]
[1765869758587,2.46485124,2933.2,2933.1,4.69355325]
[1765869758795,2.46485124,2933.2,2933.1,0.02295325]
[1765869759095,2.46485124,2933.2,2933.1,0.00295325]
[1765869761186,1.4516,2933.2,2933.1,0.00295325]
[1765869761592,1.4516,2933.2,2933.1,1.46575325]
[1765869761988,1.4516,2933.2,2933.1,0.70965325]
[1765869762298,1.4516,2933.2,2933.1,1.46575325]
[1765869762600,4.82989,2933.3,2933.2,1.4628]
[1765869763493,4.11219,2933.3,2933.2,1.4628]
[1765869764899,4.82989,2933.3,2933.2,1.4628]
[1765869766697,3.2078,2933.6,2933.5,1.8919]
[1765869766903,4.6594,2933.6,2933.5,4.4219]
[1765869767102,4.6594,2933.6,2933.5,1.8919]
[1765869767807,4.6594,2933.6,2933.5,1.1358]
[1765869770896,4.6594,2933.6,2933.5,0.4291]
[1765869771505,4.82987,2933.6,2933.1,0.00295325]
[1765869771802,1.4516,2933.2,2933.1,0.00295325]
[1765869772001,1.4516,2933.2,2933.1,0.70965325]
[1765869772908,1.4516,2933.2,2933.1,1.46575325]
[1765869774108,0.7339,2933.2,2933.1,1.64575325]
[1765869774311,1.4516,2933.2,2933.1,1.46575325]
[1765869774509,1.4516,2933.2,2933.1,0.70965325]
[1765869774905,1.4516,2933.2,2933.1,1.46575325]
[1765869775300,1.62208,2933.4,2933.3,1.4628]
[1765869775712,1.62208,2933.4,2933.3,0.7067]
[1765869776408,1.4516,2933.2,2933.1,1.46575325]
[1765869776804,1.4516,2933.2,2933.1,0.00295325]
[1765869777806,1.62209,2933.2,2933.1,0.00295325]
[1765869778012,1.62209,2933.2,2933.1,1.46575325]
[1765869778912,0.90439,2933.2,2933.1,1.46575325]
[1765869779815,1.62209,2933.2,2933.1,1.46575325]
[1765869780408,1.62209,2933.2,2933.1,0.70965325]
[1765869780809,1.62209,2933.2,2933.1,1.46575325]
[1765869781004,1.4516,2933.2,2933.1,1.46575325]
[1765869781209,4.6594,2933.6,2933.5,0.7067]
[1765869781414,4.82987,2933.6,2933.1,0.00295325]
[1765869781815,0.7339,2933.2,2933.1,1.46575325]
[1765869782006,1.4516,2933.2,2933.1,1.46575325]
[1765869782209,1.63102,2932.7,2932.6,3.32045]
[1765869782510,1.63102,2932.7,2932.6,0.11265]
[1765869783312,1.63348497,2932.7,2932.6,0.11587872]
[1765869785018,1.9024,2932.5,2932.4,0.00511761]
[1765869785416,2.07294,2932.5,2932.4,0.00511761]
[1765869785621,1.8765,2932.0,2931.9,3.2078]
[1765869785824,1.4605,2932.0,2931.9,3.94549752]
[1765869786417,1.8765,2932.0,2931.9,0.00319752]
[1765869787518,2.04706,2932.0,2931.9,0.00319752]
[1765869788115,1.63106,2932.0,2931.9,0.00319752]
[1765869788315,0.91536,2932.0,2931.9,1.48969752]
[1765869788512,0.17056,2932.0,2931.9,1.48969752]
[1765869788714,1.63106,2932.0,2931.9,0.00319752]
[1765869789113,4.83886,2932.0,2931.9,0.00319752]
[1765869789313,5.25486,2932.0,2931.9,0.00319752]
[1765869790319,5.25486,2932.0,2931.7,0.00511761]
[1765869790512,1.4605,2931.6,2931.5,1.1636]
[1765869790924,1.4605,2931.6,2931.5,1.9156]
[1765869791429,1.63108,2931.8,2931.7,1.4865]
[1765869791724,0.91538,2931.8,2931.7,1.4865]
[1765869792228,3.9526,2932.0,2931.9,1.4865]
[1765869793323,4.6683,2932.0,2931.9,1.4865]
[1765869793728,3.9526,2932.0,2931.9,1.4865]
[1765869794034,1.63109,2931.6,2931.5,0.00366342]
[1765869794219,1.4605,2931.1,2930.6,3.2078]
[1765869794531,1.4605,2930.4,2930.3,3.9423]
[1765869794828,1.4605,2930.4,2930.3,5.8323]
[1765869795026,1.4605,2930.4,2930.3,3.9423]
[1765869795228,1.46292907,2930.4,2930.3,3.36211764]
[1765869796324,0.00242907,2930.4,2930.3,4.69861764]
[1765869796525,0.00242907,2930.4,2930.3,6.98861764]
[1765869797028,0.00242907,2930.4,2930.3,7.23861764]
[1765869797223,0.00242907,2930.4,2930.3,4.69861764]
[1765869797423,0.74722907,2930.4,2930.3,4.75861764]
[1765869797630,0.74722907,2930.4,2930.3,1.55081764]
[1765869798131,4.67072907,2930.4,2930.3,0.79881764]
[1765869798534,4.67072907,2930.4,2930.3,0.73881764]
[1765869798720,0.74722907,2930.4,2930.3,1.49081764]
[1765869800438,0.00242907,2930.4,2930.3,1.49081764]
[1765869801432,0.74722907,2930.4,2930.3,1.49081764]
[1765869801728,0.00242907,2930.4,2930.3,1.49081764]
[1765869804127,0.74722907,2930.4,2930.3,1.49081764]
[1765869804330,0.00242907,2930.4,2930.3,1.49081764]
[1765869805235,0.74722907,2930.4,2930.3,1.49081764]
[1765869806535,0.00242907,2930.4,2930.3,1.70081764]
[1765869810531,2.907e-05,2930.4,2930.3,3.85081764]
[1765869810736,3.2078,2931.0,2930.9,1.4865]
[1765869811543,3.9526,2931.0,2930.9,1.4865]
[1765869811741,3.95669859,2931.0,2930.9,1.4865]
[1765869812040,3.21189859,2931.0,2930.9,1.4865]
[1765869812343,3.21189859,2931.0,2930.9,1.4965]
[1765869812540,1.4919,2930.8,2930.7,1.50201761]
[1765869812840,1.4919,2930.8,2930.7,0.00511761]
[1765869813637,0.17063,2930.9,2930.8,0.7377]
[1765869813838,3.21189859,2931.0,2930.9,1.4969]
[1765869814038,3.21189859,2931.0,2930.9,1.6769]
[1765869814337,0.00409859,2931.0,2930.9,4.3469]
[1765869814543,3.2078,2931.6,2931.5,1.9297]
[1765869815145,4.22235512,2931.6,2931.5,1.9297]
[1765869815344,3.2078,2931.6,2931.5,1.9297]
[1765869815544,0.73248267,2931.6,2931.5,1.9297]
[1765869815841,4.70308267,2931.6,2931.5,1.9297]
[1765869816143,5.71763779,2931.6,2931.5,1.1705]
[1765869816347,4.70308267,2931.6,2931.5,1.1705]
[1765869816545,5.88822779,2931.6,2931.5,1.1705]
[1765869816840,4.87367267,2931.6,2931.1,40.8]
[1765869817043,5.88822779,2931.6,2931.5,0.7377]
[1765869817242,4.87367267,2931.6,2931.5,0.7377]
[1765869817442,5.88822779,2931.6,2931.5,0.7377]
[1765869817743,4.87367267,2931.6,2931.5,1.1705]
[1765869817940,5.88822779,2931.6,2931.5,1.1705]
[1765869818141,4.87367267,2931.6,2931.5,1.1705]
[1765869818337,5.88822779,2931.6,2931.5,1.1705]
[1765869818538,4.87367267,2931.6,2931.5,1.1705]
[1765869818737,5.88822779,2931.6,2931.5,1.1705]
[1765869818937,4.87367267,2931.6,2931.5,1.1705]
[1765869819141,5.71763779,2931.6,2931.5,1.9297]
[1765869819342,3.94028267,2931.6,2931.5,1.9297]
[1765869819541,4.95483779,2931.6,2931.5,1.9297]
[1765869819741,0.73248267,2931.6,2931.5,1.9297]
[1765869820042,0.00338267,2931.6,2931.5,1.9297]
[1765869820441,0.73248267,2931.6,2931.5,1.9297]
[1765869821245,0.7291,2931.2,2931.1,40.8]
[1765869821543,5.88822779,2931.6,2931.5,0.7377]
[1765869821745,4.87367267,2931.6,2931.5,1.9297]
[1765869822041,5.88822779,2931.6,2931.5,1.9297]
[1765869822241,4.87367267,2931.6,2931.5,1.9297]
[1765869822444,5.71763779,2931.6,2931.5,1.9297]
[1765869822643,4.70308267,2931.6,2931.5,1.9297]
[1765869822832,5.71763779,2931.6,2931.5,1.9297]
[1765869823037,4.70308267,2931.6,2931.5,1.9297]
[1765869823237,3.21118267,2931.6,2931.5,1.9297]
[1765869823642,3.94028267,2931.6,2931.5,1.9297]
[1765869823840,0.73248267,2931.6,2931.5,1.9297]
[1765869826646,0.00338267,2931.6,2931.5,1.9297]
[1765869827644,4.70308267,2931.6,2931.5,1.9297]
[1765869828242,4.70308267,2931.6,2931.5,1.1705]
[1765869828949,0.7291,2931.2,2931.1,40.8]
[1765869829142,3.21118267,2931.6,2931.1,40.8]
[1765869829652,4.70308267,2931.6,2931.5,0.7377]
[1765869830640,3.97398267,2931.6,2931.1,40.8]
[1765869830846,0.7291,2931.2,2931.1,40.8]
[1765869831046,3.21118267,2931.6,2931.1,40.8]
[1765869831243,4.70308267,2931.6,2931.5,1.9297]
[1765869835145,1.4919,2931.2,2931.1,40.8]
[1765869835354,0.7291,2930.8,2930.7,1.50201761]
[1765869835553,0.7291,2930.8,2930.7,3.80201761]
[1765869835853,1.4919,2930.8,2930.7,3.80201761]
[1765869836450,1.4919,2930.8,2930.7,1.77201761]
[1765869836754,1.4919,2930.8,2930.7,4.05201761]
[1765869837159,1.4919,2930.8,2930.7,2.55511761]
[1765869837458,0.7291,2930.8,2930.7,4.05201761]
[1765869837856,3.9369,2930.9,2930.8,1.4969]
[1765869838057,3.9369,2930.9,2930.8,4.2469]
[1765869838659,4.6997,2930.9,2930.8,4.2469]
[1765869839256,3.9369,2930.9,2930.8,4.2469]
[1765869839457,4.6997,2930.9,2930.8,4.2469]
[1765869840550,3.9369,2930.9,2930.8,4.2469]
[1765869840761,4.6997,2930.9,2930.8,4.2469]
[1765869840957,1.4919,2930.9,2930.8,4.2469]
[1765869841659,0.7291,2930.9,2930.8,4.2469]
[1765869842556,1.4919,2930.9,2930.8,1.4969]
[1765869843359,0.7291,2930.9,2930.8,3.9469]
[1765869843858,1.4679,2930.9,2930.8,3.9469]
[1765869844760,6.2266569,2931.2,2931.1,0.7074]
[1765869845058,4.6896,2931.2,2931.1,1.4392]
[1765869846463,1.4818,2931.1,2931.0,1.1367]
[1765869846764,1.4818,2931.1,2931.0,1.8685]
[1765869847768,1.4818,2931.1,2931.0,1.1367]
[1765869848364,1.4818,2931.1,2931.0,1.8685]
[1765869849270,0.743,2931.1,2931.0,1.8685]
[1765869849456,1.6524,2931.4,2931.3,0.7074]
[1765869850468,4.9724569,2931.5,2931.4,1.4392]
[1765869850469,3.2078,2931.5,2931.4,1.4392]
[1765869850657,3.2078,2931.5,2931.4,4.0592]
[1765869851079,3.9508,2931.5,2931.4,4.0592]
[1765869853176,4.6896,2931.5,2931.4,1.4392]
[1765869854170,4.6896,2931.5,2931.4,3.7992]
[1765869854469,3.2078,2931.5,2931.4,3.7992]
[1765869855174,3.9508,2931.5,2931.4,3.7992]
[1765869855672,3.9508,2931.5,2930.7,1.44431761]
[1765869855673,1.4818,2930.8,2930.7,1.44431761]
[1765869855877,0.743,2930.8,2930.7,3.73431761]
[1765869856773,1.4818,2931.0,2930.9,1.4392]
[1765869856974,1.4818,2931.0,2930.9,3.9592]
[1765869857579,1.4818,2931.0,2930.9,4.2292]
[1765869859476,1.7246,2931.0,2930.9,2.79]
[1765869859676,1.4818,2930.8,2930.7,0.71251761]
[1765869859870,3.0188569,2930.8,2930.7,1.44431761]
[1765869860288,1.4818,2930.8,2930.7,1.44431761]
[1765869860977,1.25236015,2931.5,2930.7,1.44431761]
[1765869860978,4.6896,2931.3,2931.2,1.4392]
[1765869861176,3.2078,2931.3,2931.2,3.9292]
[1765869861881,3.9508,2931.3,2931.2,3.9292]
[1765869862084,3.2078,2931.3,2931.2,3.9292]
[1765869862285,4.86357267,2931.6,2931.5,1.8685]
[1765869863378,4.69298267,2931.6,2931.5,1.8685]
[1765869863584,3.95418267,2931.6,2931.5,1.8685]
[1765869864281,3.21118267,2931.6,2931.5,4.2785]
[1765869864477,3.95418267,2931.6,2931.5,4.2785]
[1765869865380,0.74638267,2931.6,2931.5,4.2785]
[1765869866282,0.00338267,2931.6,2931.5,4.2785]
[1765869866491,0.74638267,2931.6,2931.5,4.2785]
[1765869867380,0.00338267,2931.6,2931.5,4.2785]
[1765869870286,0.00338267,2931.6,2931.5,4.7185]
[1765869870591,0.74638267,2931.6,2931.5,4.7185]
[1765869870885,0.00338267,2931.6,2931.5,4.7185]
[1765869871286,0.00338267,2931.6,2931.5,1.8685]
[1765869871484,0.00338267,2931.6,2931.5,4.1785]
[1765869872891,0.00338267,2931.6,2931.5,5.71465624]
[1765869873291,0.00338267,2931.6,2931.5,1.8685]
[1765869873493,0.00338267,2931.6,2931.5,4.2385]
[1765869873992,4.72798267,2931.6,2931.5,1.9157]
[1765869874188,0.00338267,2931.6,2931.5,4.6557]
[1765869880499,0.00338267,2931.6,2931.5,4.7157]
[1765869881097,1.53408267,2931.6,2931.5,1.9157]
[1765869881297,1.53408267,2931.6,2931.5,3.6067]
[1765869881496,0.76028267,2931.6,2931.5,4.3857]
[1765869883700,0.76028267,2931.6,2931.5,1.9157]
[1765869883902,0.76028267,2931.6,2931.5,4.4257]
[1765869884896,0.76028267,2931.6,2931.5,1.9157]
[1765869885104,0.76028267,2931.6,2931.5,4.4257]
[1765869885602,1.53408267,2931.6,2931.5,2.51]
[1765869885795,1.53953891,2931.6,2931.0,1.9801]
[1765869885996,4.7385,2931.4,2931.3,1.5508]
[1765869886602,4.7385,2931.4,2931.3,0.7718]
[1765869887390,4.7385,2931.4,2931.3,1.5508]
[1765869888202,4.7385,2931.4,2931.3,0.7718]
[1765869888499,0.7569,2931.1,2931.0,1.2011]
[1765869888698,0.7569,2931.1,2931.0,4.3801]
[1765869889002,4.7385,2931.4,2931.3,1.5508]
[1765869890699,3.2078,2931.4,2931.3,4.1108]
[1765869890901,3.21291761,2931.8,2931.7,1.5508]
[1765869891098,0.00511761,2931.8,2931.7,3.9608]
[1765869891405,0.00511761,2931.8,2931.7,44.7608]
[1765869891601,0.00511761,2931.8,2931.7,44.7208]
[1765869891802,1.761e-05,2931.8,2931.7,44.7208]
[1765869892004,3.2078,2932.2,2932.1,1.5508]
[1765869892209,3.2078,2932.2,2932.1,4.3608]
[1765869892399,3.9647,2932.2,2932.1,4.3608]
[1765869892600,4.7385,2932.2,2932.1,4.3608]
[1765869892896,4.74164867,2932.2,2932.1,4.3608]
[1765869895200,3.96784867,2932.2,2932.1,4.3608]
[1765869896201,3.21094867,2932.2,2932.1,4.3608]
[1765869896704,1.5307,2932.1,2932.0,0.4412]
[1765869896907,1.5307,2932.1,2932.0,3.993]
[1765869897309,1.5307,2932.1,2932.0,4.772]
[1765869898702,0.7569,2932.1,2932.0,4.772]
[1765869901512,1.5307,2932.1,2932.0,0.4412]
[1765869901718,1.5307,2932.1,2931.5,0.61179]
[1765869901917,0.7569,2931.8,2931.7,1.5508]
[1765869902110,0.7569,2931.8,2931.7,3.9608]
[1765869902905,1.4875,2931.7,2931.6,40.8]
[1765869903109,1.4875,2931.7,2931.6,4.0352]
[1765869903508,0.7097,2931.7,2931.6,4.0352]
[1765869904313,3.9175,2931.8,2931.7,1.4952]
[1765869905017,3.9175,2931.8,2931.7,4.2052]
[1765869905216,3.9175,2932.1,2932.0,1.9321]
[1765869905414,3.9175,2932.1,2932.0,4.2321]
[1765869905620,4.6953,2932.1,2932.0,4.2321]
[1765869905815,3.2078,2932.1,2932.0,4.2321]
[1765869906016,3.9175,2932.1,2932.0,4.2321]
[1765869906515,4.6953,2932.1,2932.0,4.2321]
[1765869907720,3.2078,2932.1,2932.0,4.2321]
[1765869908320,4.6953,2932.1,2932.0,4.2321]
[1765869910618,0.7097,2931.1,2931.0,1.91657486]
[1765869910922,4.6953,2931.1,2931.0,2.09657486]
[1765869913126,1.4875,2930.8,2930.3,0.00431764]
[1765869913324,1.4875,2930.4,2930.3,1.49951764]
[1765869913524,4.6953,2930.4,2930.3,1.49951764]
[1765869913826,4.6953,2930.4,2930.3,0.77601764]
[1765869914124,4.6953,2930.4,2930.3,1.49951764]
[1765869914322,4.6953,2930.4,2930.3,0.77601764]
[1765869916023,4.6953,2930.4,2930.3,1.49951764]
[1765869916822,4.6953,2930.4,2930.3,0.77601764]
[1765869917018,4.6953,2930.4,2930.3,1.49951764]
[1765869917222,4.6953,2930.4,2930.3,3.84951764]
[1765869920139,4.6953,2930.4,2930.3,1.49951764]
[1765869920440,4.6953,2930.4,2930.3,0.77601764]
[1765869920836,4.6953,2930.4,2930.1,0.00511761]
[1765869920837,1.4875,2930.2,2930.1,0.00511761]
[1765869921036,3.02301746,2930.2,2930.1,0.00511761]
[1765869921431,0.7097,2929.7,2929.6,40.8]
[1765869921636,1.4875,2929.7,2929.6,43.35]
[1765869921932,0.71210139,2929.7,2929.6,43.35404912]
[1765869922133,0.00240139,2929.7,2929.6,43.35404912]
[1765869922331,0.00240139,2929.7,2929.6,40.80404912]
[1765869922538,0.00240139,2929.7,2929.6,43.18404912]
[1765869924147,0.00240139,2929.7,2929.6,44.71956658]
[1765869925537,0.71210139,2929.7,2929.6,43.16404912]
[1765869926038,0.00240139,2929.7,2929.6,43.16404912]
[1765869927039,0.00240139,2929.7,2929.6,3.85924912]
[1765869928147,0.00240139,2929.7,2929.6,5.39476658]
[1765869928743,0.71210139,2929.7,2929.6,4.28924912]
[1765869928945,1.48990139,2929.7,2929.6,4.28924912]
[1765869929140,0.71210139,2929.7,2929.6,4.28924912]
[1765869929445,0.00240139,2929.7,2929.6,4.28924912]
[1765869929841,0.71210139,2929.7,2929.6,4.30924912]
[1765869930146,0.71210139,2929.7,2929.6,1.49924912]
[1765869930446,0.71210139,2929.7,2929.6,4.08924912]
[1765869931345,0.00240139,2929.7,2929.6,4.08924912]
[1765869932046,1.39e-06,2929.7,2929.6,4.08924912]
[1765869936149,0.75620139,2929.7,2929.6,4.08924912]
[1765869936644,1.39e-06,2929.7,2929.6,4.08924912]
[1765869936838,1.39e-06,2929.7,2929.6,2.59404912]
[1765869939942,1.53550139,2929.7,2929.6,0.00404912]
[1765869940150,1.53550139,2929.7,2929.6,1.54934912]
[1765869943452,1.53550139,2929.7,2929.6,0.00404912]
[1765869944254,1.5355,2929.5,2929.4,0.78451761]
[1765869944447,1.5355,2929.5,2929.4,0.03511761]
[1765869945154,1.5355,2929.5,2929.4,0.03880215]
[1765869945350,1.5355,2929.5,2929.4,0.81820215]
[1765869945557,1.5355,2929.5,2929.4,1.58410215]
[1765869945855,1.39e-06,2929.7,2929.5,0.4354]
[1765869946057,1.39e-06,2929.7,2929.5,2.7354]
[1765869946352,1.39e-06,2929.7,2929.5,7.48099117]
[1765869946758,1.39e-06,2929.7,2929.6,40.8]
[1765869946948,1.39e-06,2929.7,2929.6,43.2]
[1765869948957,1.39e-06,2929.7,2929.6,40.8]
[1765869949254,1.39e-06,2929.7,2929.6,43.26]
[1765869949650,1.39e-06,2929.7,2929.6,2.46]
[1765869950045,1.53550139,2929.7,2929.6,4.0053]
[1765869950250,1.53550139,2929.7,2929.6,2.46]
[1765869950456,1.53550139,2929.7,2929.6,3.2394]
[1765869950660,1.53550139,2929.7,2929.6,4.0053]
[1765869951556,1.53550139,2929.7,2929.6,4.1253]
[1765869953362,0.75620139,2929.7,2929.6,4.1253]
[1765869954455,1.39e-06,2929.7,2929.6,2.58]
[1765869954656,0.75620139,2929.7,2929.6,4.1253]
[1765869954964,1.5355,2929.5,2929.4,0.00880215]
[1765869955261,1.5355,2929.5,2929.4,4.28410215]
[1765869956354,0.7562,2929.5,2929.4,4.28410215]
[1765869957162,0.7562,2929.6,2929.5,1.9807]